Cogmind - Beta 16.1 @@@ ROGUE MODE // 2026.02.19 @ 19:20:22 Player: rootmos Result: Destroyed by H-61 Shepherd with Heavy Assault Cannon Performance ------------- Evolutions (2) 1000 Regions Visited (5) 1000 Robots Destroyed (31) 155 Value Destroyed (741) 741 Prototype IDs (24) 480 Alien Tech Used (0) 0 Bonus (349) 349 TOTAL SCORE: 3725 Bonus ------- Follower Combat Kills 49 Aligned with FarCom 300 Cogmind --------- Core Integrity 0/550 Matter 129/300 Energy 90/100 System Corruption 0% Temperature Cool (9) Movement Core (350) Ox6 Location -8/Materials Parts ------- > --- POWER (1) -------- (None) > --- PROPULSION (3) --- (None) > --- UTILITY (5) ------ Large Storage Unit > --- WEAPON (2) ------- (None) > --- INVENTORY (15) --- Heat Sink Improved Heat Sink Medium Storage Unit High-capacity Battery (250) Improved Sensor Array Experimental Sensor Array Seismic Detector Trap Reconfigurator Recalibrator Peak State ------------ > --- POWER ------------ Light Ion Engine > --- PROPULSION ------- Aluminum Leg > --- UTILITY ---------- Cooling System Large Storage Unit Trap Scanner Hacking Suite Trap Reconfigurator > --- WEAPON ----------- Ion Cannon Minigun > --- INVENTORY -------- Ion Engine Heat Sink Medium Storage Unit High-capacity Battery Sensor Array Experimental Sensor Array Seismic Detector Hardened Light Armor Plating Heavy EM Pulse Gun Grenade Launcher [Rating: 28] Favorites ----------- Power Ion Engine Engine Ion Engine Propulsion Light Treads Treads Light Treads Leg Aluminum Leg Utility Hardened Light Armor Plating Device Trap Reconfigurator Storage Medium Storage Unit Hackware Hacking Suite Protection Hardened Light Armor Plating Weapon Light Assault Rifle Energy Gun Heavy EM Pulse Gun Energy Cannon Ion Cannon Ballistic Gun Light Assault Rifle Ballistic Cannon Light Cannon Launcher Grenade Launcher Slashing Weapon Makeshift Axe Build | -11 -10 -10 -10 -9 -8 ------- Run | Yrd Mat Min Exi Min Mat Slots Evolved 4 | . . . . . 4 Power . | . . . . . . Propulsion 1 | . . . . . 1 Utility 3 | . . . . . 3 Weapon . | . . . . . . Parts Attached 47 | 2 12 1 2 1 29 Power 6 | . . . . . 6 Engine 6 | . . . . . 6 Core . | . . . . . . Reactor . | . . . . . . Propulsion 8 | 2 1 . . . 5 Treads 5 | 2 1 . . . 2 Leg 3 | . . . . . 3 Wheel . | . . . . . . Hover . | . . . . . . Flight . | . . . . . . Utility 16 | . 5 1 2 . 8 Device 8 | . 1 1 1 . 5 Storage 3 | . 1 . 1 . 1 Processor . | . . . . . . Hackware 1 | . . . . . 1 Protection 4 | . 3 . . . 1 Artifact . | . . . . . . Weapon 17 | . 6 . . 1 10 Energy Gun 2 | . 1 . . . 1 Energy Cannon 2 | . . . . . 2 Ballistic Gun 4 | . 2 . . . 2 Ballistic Cannon 5 | . 1 . . . 4 Launcher 2 | . 2 . . . . Special Weapon . | . . . . . . Impact Weapon . | . . . . . . Slashing Weapon 2 | . . . . 1 1 Piercing Weapon . | . . . . . . Special Melee Weapon . | . . . . . . Unidentified Prototypes 2 | . . 1 1 . . Parts Lost 27 | . . . . . 27 Power 4 | . . . . . 4 Propulsion 6 | . . . . . 6 Utility 7 | . . . . . 7 Weapon 10 | . . . . . 10 Highest Loss Streak 11 | . . . . . 11 To Critical Strikes . | . . . . . . Average Backups 10 | 6 8 10 10 10 12 Power . | 1 1 1 1 1 . Propulsion . | 4 1 . . . . Utility 5 | . 2 6 6 7 8 Weapon 2 | 1 3 3 2 2 3 Tool/Special . | . . . . . . Unused Backups 24 | . 16 . 1 . 7 Power 4 | . 4 . . . . Propulsion 2 | . 2 . . . . Utility 12 | . 4 . 1 . 7 Weapon 6 | . 6 . . . . Tool/Special . | . . . . . . Average Slot Usage (%) 93 | . 97 100 100 100 83 Engine 12 | . 14 14 14 14 8 Treads 22 | . 27 28 28 28 9 Leg 2 | . . . . . 9 Device 10 | . 1 2 14 14 19 Storage 12 | . 14 14 14 14 9 Hackware 1 | . . . . . 4 Protection 5 | . 10 11 . . 5 Energy Gun 2 | . 6 . . . . Energy Cannon 2 | . . . . . 6 Ballistic Gun 9 | . 13 14 14 6 2 Ballistic Cannon 7 | . 3 14 14 14 5 Launcher 1 | . 4 . . . . Peak Build Rating 28 | 6 10 16 17 20 28 Average Rating 16 | 6 8 10 16 18 24 On Entrance 12 | 6 6 9 16 17 20 Avg Prop Armor Cover (%) 7 | . . . . . 7 Naked Turns . | . . . . . . Heaviest Build 50 | 14 24 24 20 22 50 Greatest Support 40 | 40 40 40 40 40 40 Greatest Overweight (x) 13 | . . . . . 13 Average Overweight (x) . | . . . . . 1 Largest Inventory Capacity 20 | 8 10 10 20 10 15 Average Capacity 10 | 8 8 10 10 10 14 Most Carried 15 | 6 10 10 10 10 15 Average Carried 10 | 5 8 10 9 9 12 Final Capacity 15 | 8 10 10 10 10 15 Final Carried 10 | 4 10 10 10 10 9 Class Distribution -------------------- 94% | Mutant 5% | Scavenger-Mutant Dominant Class ---------------- Mutant | -10/Materials Mutant | -10/Mines Mutant | -10/Exiles Mutant | -9/Mines Mutant | -8/Materials Resources | -11 -10 -10 -10 -9 -8 ----------- Run | Yrd Mat Min Exi Min Mat Matter Collected 1211 | 200 338 . 205 10 458 Remotely . | . . . . . . Salvage Created 802 | . 312 . . . 490 Parts 55 | . 27 . . . 28 Haulers Intercepted . | . . . . . . Recyclers Shooed . | . . . . . . Parts Field Recycled . | . . . . . . Retrieved Matter . | . . . . . . Parts Self-Destructed . | . . . . . . Prevented . | . . . . . . Parts Restored . | . . . . . . Kills | -11 -10 -10 -10 -9 -8 ------- Run | Yrd Mat Min Exi Min Mat Combat Hostiles Destroyed 25 | . 14 . . . 11 Melee 2 | . . . . . 2 Guns 5 | . 5 . . . . Cannons 6 | . . . . . 6 AOE 12 | . 9 . . . 3 Classes Destroyed 8 | . 4 . . . 4 Worker 2 | . 2 . . . . Builder 1 | . . . . . 1 Recycler 2 | . . . . . 2 Watcher 1 | . 1 . . . . Swarmer 11 | . 8 . . . 3 Grunt 11 | . 6 . . . 5 Duelist 1 | . . . . . 1 Sentry 2 | . . . . . 2 Best Kill Streak 8 | . 4 . . . 8 Combat Bots Only 5 | . 3 . . . 5 Max Kills in Single Turn 3 | . 3 . . . 2 Gunslinging . | . . . . . . Exploded 3 | . 3 . . . 2 Melee 1 | . . . . . 1 Uniques/NPCs Destroyed . | . . . . . . Combat | -11 -10 -10 -10 -9 -8 -------- Run | Yrd Mat Min Exi Min Mat Hostile Shots Fired 263 | . 53 . . . 210 Missed 45 | . 14 . . . 31 Hits 218 | . 39 . . . 179 Melee 7 | . . . . . 7 Projectile 211 | . 39 . . . 172 Critical Strikes 6 | . 1 . . . 5 Damage Taken 3687 | . 507 . . . 3180 Core 680 | . 99 . . . 581 Absorbed by Shields . | . . . . . . Core Remaining (%) 80 | 100 . . . 60 . Volleys Fired 79 | . 28 . 8 . 43 Largest 2 | . 2 . 2 . 2 Hottest 105 | . 65 . 50 . 105 Shots Fired 145 | . 50 . 16 . 79 Gun 66 | . 40 . 8 . 18 Cannon 65 | . . . 8 . 57 Launcher 14 | . 10 . . . 4 Special . | . . . . . . Kinetic 94 | . 28 . 16 . 50 Thermal 22 | . . . . . 22 Explosive 14 | . 10 . . . 4 Electromagnetic 15 | . 12 . . . 3 Robot Hit Streak 12 | . 6 . . . 12 Robot Miss Streak 5 | . 5 . . . 5 Penetration Max 1 | . . . . . 1 Secondary Targets 1 | . 1 . . . . Max Gunslinging Chain 1 | . 1 . . . . Shots Hit Robots 77 | . 23 . . . 54 Core Hits 45 | . 21 . . . 24 Critical Kills . | . . . . . . Critical Parts Destroyed . | . . . . . . Critical Strikes 2 | . . . . . 2 Blast 1 | . . . . . 1 Sever 1 | . . . . . 1 Melee Attacks 10 | . . . . . 10 Impact . | . . . . . . Slashing 10 | . . . . . 10 Piercing . | . . . . . . Sneak Attacks . | . . . . . . Combat Hostiles . | . . . . . . Follow-up Attacks . | . . . . . . Damage Inflicted 2355 | . 796 . . . 1559 Guns 388 | . 273 . . . 115 Cannons 1049 | . . . . . 1049 Explosions 751 | . 523 . . . 228 Melee 167 | . . . . . 167 Ramming . | . . . . . . Kinetic 919 | . 146 . . . 773 Thermal 348 | . . . . . 348 Explosive 751 | . 523 . . . 228 Electromagnetic 170 | . 127 . . . 43 Impact . | . . . . . . Slashing 167 | . . . . . 167 Piercing . | . . . . . . Highest Corruption 3 | . 3 3 3 3 . Average Corruption 2 | . 2 3 3 3 . Corruption Purged . | . . . . . . Corruption Blocked . | . . . . . . Effects 33 | . 14 1 14 4 . Message Errors 6 | . 3 . 2 1 . Matter Fused 10 | . 7 1 2 . . Heat Flow Errors 6 | . 1 . 5 . . Energy Discharges 4 | . . . 4 . . Parts Rejected 1 | . 1 . . . . Data Loss (minor) 5 | . 1 . 1 3 . Misfires 1 | . 1 . . . . Overload Shots . | . . . . . . Overflow Damage 13 | . 9 . . . 4 Projectiles 4 | . . . . . 4 Explosions 9 | . 9 . . . . Melee . | . . . . . . Knockbacks 1 | . . . . . 1 Impact . | . . . . . . Kinetic 1 | . . . . . 1 Secondary . | . . . . . . Self-Inflicted Damage 151 | . 92 . . . 59 Shots 5 | . 3 . . . 2 Rammed . | . . . . . . Targets Rammed . | . . . . . . Kicked . | . . . . . . Crushed . | . . . . . . Highest Temperature 268 | . 198 . 268 . 114 Average Temperature 57 | . 55 . 83 . 35 Received Heat Transfer 1302 | . 114 . . . 1188 Effects 1 | . . . 1 . . Energy Bleed 1 | . . . 1 . . Siege Activations . | . . . . . . Martial Activations . | . . . . . . Shielding Activations . | . . . . . . Robots Disrupted . | . . . . . . Combat Hostiles . | . . . . . . Robots Corrupted . | . . . . . . Combat Hostiles . | . . . . . . Parts Fried . | . . . . . . Impact Corruptions . | . . . . . . Robots Melted . | . . . . . . Combat Hostiles . | . . . . . . Parts Melted . | . . . . . . Heat Transferred 555 | . . . . . 555 Parts Sabotaged . | . . . . . . Parts Stolen . | . . . . . . Parts Stripped . | . . . . . . Power Chain Reactions . | . . . . . . Alert | -11 -10 -10 -10 -9 -8 ------- Run | Yrd Mat Min Exi Min Mat Maximum Alert Level . | . . . . . . Low Security (%) 100 | 100 100 100 . 100 100 Level 1 . | . . . . . . Level 2 . | . . . . . . Level 3 . | . . . . . . Level 4 . | . . . . . . Level 5 . | . . . . . . High Security . | . . . . . . Max Security . | . . . . . . Peak Influence 173 | . 141 8 . . 173 Initial 8 | . . 8 . . . Average 41 | . 50 1 . . 39 Influence Increases 914 | . 415 . . . 499 Destroy 0b10 Robot/C 560 | . 280 . . . 280 Destroy 0b10 Robot/NC 30 | . 15 . . . 15 Destroy Leader 112 | . 52 . . . 60 Allied During Kill 7 | . . . . . 7 Successful Hack 4 | . . . . . 4 Disable Machine 30 | . . . . . 30 Destroy Structure 96 | . 53 . . . 43 Lose Combat Pursuer 75 | . 15 . . . 60 Influence Decreases 875 | . 392 23 . . 460 Entered New Map 15 | . . 15 . . . Time Decay 630 | . 392 8 . . 230 Lost Part 210 | . . . . . 210 Lost Ally 20 | . . . . . 20 Squads Dispatched 6 | . 3 . . . 3 Investigation 2 | . 2 . . . . Extermination . | . . . . . . Reinforcement 4 | . 1 . . . 3 Assault . | . . . . . . Garrison . | . . . . . . Intercept . | . . . . . . Searches Triggered . | . . . . . . Construction Impeded 1 | . . . . . 1 Haulers Reinforced . | . . . . . . Active Scanning Responses . | . . . . . . Cargo Convoy Interrupts . | . . . . . . Stealth | -11 -10 -10 -10 -9 -8 --------- Run | Yrd Mat Min Exi Min Mat Distress Signals 3 | . 1 . . . 2 Communications Jammed . | . . . . . . Distress Signals . | . . . . . . Times Spotted 44 | . 20 . . . 24 Peak Tracking Total 7 | . 4 . . . 7 Tactical Retreats 4 | . 1 . . . 3 Traps | -11 -10 -10 -10 -9 -8 ------- Run | Yrd Mat Min Exi Min Mat Traps Triggered 6 | . 6 . . . . Indirectly . | . . . . . . Trap Hack Attempts . | . . . . . . Triggered . | . . . . . . Disarmed . | . . . . . . Reprogrammed . | . . . . . . Reused . | . . . . . . Traps Reconfigurated 5 | . . . . . 5 Traps Extracted . | . . . . . . Installed . | . . . . . . Triggered . | . . . . . . Machines | -11 -10 -10 -10 -9 -8 ---------- Run | Yrd Mat Min Exi Min Mat Machines Disabled 3 | . . . 1 . 2 Max in Single Turn 1 | . . . 1 . 1 Machines Repaired . | . . . . . . Machines Dismantled . | . . . . . . Machines Sabotaged . | . . . . . . Overloaded Fab Kills . | . . . . . . Hacking | -11 -10 -10 -10 -9 -8 --------- Run | Yrd Mat Min Exi Min Mat Machines Accessed 7 | . 3 . 3 . 1 Terminals 4 | . 3 . . . 1 Fabricators . | . . . . . . Repair Stations . | . . . . . . Recycling Units . | . . . . . . Scanalyzers . | . . . . . . Garrison Access . | . . . . . . Total Hacks 25 | . 5 . 19 . 1 Successful 21 | . 1 . 19 . 1 Failed 4 | . 4 . . . . Catastrophic 1 | . 1 . . . . Database Lockouts . | . . . . . . Manual 1 | . . . 1 . . Terminals 6 | . 5 . . . 1 Fabricators . | . . . . . . Repair Stations . | . . . . . . Recycling Units . | . . . . . . Scanalyzers . | . . . . . . Garrison Access . | . . . . . . Terminal Hacks 21 | . 1 . 19 . 1 Record 18 | . . . 18 . . Locate Traps 2 | . 1 . . . 1 Proto ID Catalog 1 | . . . 1 . . Fabricator Hacks . | . . . . . . Repair Station Hacks . | . . . . . . Recycling Unit Hacks . | . . . . . . Scanalyzer . | . . . . . . Garrison Access Hacks . | . . . . . . Unauthorized Hacks . | . . . . . . Terminals . | . . . . . . Fabricators . | . . . . . . Repair Stations . | . . . . . . Recycling Units . | . . . . . . Scanalyzers . | . . . . . . Garrison Access . | . . . . . . Data Cores Recovered . | . . . . . . Used . | . . . . . . Hacking Detections 2 | . 2 . . . . Full Trace Events 1 | . 1 . . . . Feedback Events . | . . . . . . Feedback Blocked . | . . . . . . Robot Schematics Acquired . | . . . . . . Robots Built . | . . . . . . Authchips . | . . . . . . Time . | . . . . . . Total Robot Build Rating . | . . . . . . Part Schematics Acquired . | . . . . . . Parts Built . | . . . . . . Authchips . | . . . . . . Time . | . . . . . . Total Part Build Rating . | . . . . . . Part Studies Acquired . | . . . . . . Parts Repaired . | . . . . . . Time . | . . . . . . Parts Recycled . | . . . . . . Recycled Matter . | . . . . . . Retrieved Matter . | . . . . . . Retrieved Components . | . . . . . . Parts Scanalyzed . | . . . . . . Part Schematics Acquired . | . . . . . . Parts Damaged . | . . . . . . Bothacking | -11 -10 -10 -10 -9 -8 ------------ Run | Yrd Mat Min Exi Min Mat Used RIF Installer . | . . . . . . Robots Hacked . | . . . . . . Non-combat . | . . . . . . Combat . | . . . . . . Robot Hacks Applied . | . . . . . . Relay Couplers Released . | . . . . . . Fabnet Peak Effective % . | . . . . . . Robots Rewired . | . . . . . . Allies Hacked . | . . . . . . Hacks Repelled . | . . . . . . Allies | -11 -10 -10 -10 -9 -8 -------- Run | Yrd Mat Min Exi Min Mat Total Allies 3 | . . . . 3 . Largest Group 3 | . . . . 3 3 Highest-Rated Group 40 | . . . . 40 40 Highest-Rated Ally 16 | . . . . 16 16 Total Orders . | . . . . . . Ally Attacks 25 | . . . . . 25 Total Damage 266 | . . . . . 266 Kills 3 | . . . . . 3 Allies Corrupted . | . . . . . . Allies Melted . | . . . . . . Intel | -11 -10 -10 -10 -9 -8 ------- Run | Yrd Mat Min Exi Min Mat Active Infowar (turns) 1047 | . . 21 396 . 630 Sensors 417 | . . 21 396 . . Traps 630 | . . . . . 630 Robot Analysis Total . | . . . . . . Derelict Logs Recovered . | . . . . . . Drone Launches . | . . . . . . Drone Recoveries . | . . . . . . Exploration | -11 -10 -10 -10 -9 -8 ------------- Run | Yrd Mat Min Exi Min Mat Turns Passed 3417 | 5 1262 88 837 152 1073 Spaces Moved 1695 | 1 705 53 504 90 342 Core 12 | . . . . . 12 Treads 1521 | 1 705 53 504 90 168 Legs 162 | . . . . . 162 Wheels . | . . . . . . Hover . | . . . . . . Flight . | . . . . . . Fastest Speed 160 | 160 160 160 160 160 160 Average Speed 174 | 160 160 160 160 160 230 Slowest Speed 700 | 160 160 160 160 160 700 Overloaded Moves . | . . . . . . Propulsion Burnouts . | . . . . . . Robots Hopped . | . . . . . . Potential Cave-ins . | . . . . . . Cave-ins Triggered . | . . . . . . Exploration Rate (%) 39 | 2 94 22 63 32 21 Regions Visited 5 Branch Regions 3 Pre-discovered Areas 1 | . . . 1 . . Known Exits Taken . | . . . . . . Unknown Exits Taken 5 | 1 1 1 1 1 . Scrap Searched 1 | . . . . 1 . Spaces Dug . | . . . . . . Terrain Destroyed 95 | . 56 . . . 39 Melee . | . . . . . . Projectile 13 | . . . . . 13 AOE 82 | . 56 . . . 26 Terrain Rammed . | . . . . . . Walls Destroyed . | . . . . . . Machines Disabled . | . . . . . . Actions | -11 -10 -10 -10 -9 -8 --------- Run | Yrd Mat Min Exi Min Mat Total 2011 | 4 802 56 522 100 527 Wait 82 | . 4 3 . 6 69 Move 1690 | . 704 52 503 89 342 Hop . | . . . . . . Pick Up 39 | . 23 . 3 2 11 Fast Attach 14 | . 5 . . . 9 Attach 14 | . . . . . 14 Detach 1 | . . . . . 1 Swap 44 | 2 14 1 3 1 23 Drop 36 | 2 24 . 3 2 5 Fire 79 | . 28 . 8 . 43 Melee 10 | . . . . . 10 Ram . | . . . . . . Kick . | . . . . . . Crush . | . . . . . . Escape Stasis . | . . . . . . Rewire 2 | . . . 2 . . Trap . | . . . . . . Miscellaneous . | . . . . . . Route ------- -11/Scrapyard -10/Materials (discovered 4 exits: [*Mat x3] / [*Min]) -10/Mines -10/Exiles -9/Mines -8/Materials History --------- Turn | Location | Event 6 | -11/Scrapyard | Discovered new exit (range 0) 6 | -11/Scrapyard | Entered Materials 309 | -10/Materials | Discovered new exit (range 4) 315 | -10/Materials | Build established: Mutant 483 | -10/Materials | Discovered new exit (range 11) 1052 | -10/Materials | Discovered new exit (range 15) 1121 | -10/Materials | Discovered new exit (range 16) 1268 | -10/Materials | Entered Mines 1332 | -10/Mines | Found a damaged Exp. Sensor Array with a note attached 1335 | -10/Mines | Found Prototype Device 1335 | -10/Mines | Identified Exp. Sensor Array 1350 | -10/Mines | Deemed a non-threat by the Exiles lab entrance 1350 | -10/Mines | Discovered new exit (range 5) 1356 | -10/Mines | Entered Exiles 1444 | -10/Exiles | Met 8R-AWN 1500 | -10/Exiles | Met EX-HEX 1603 | -10/Exiles | Met EX-BIN 1646 | -10/Exiles | Aligned with FarCom system 1648 | -10/Exiles | Given EX-Vault access code 1746 | -10/Exiles | Opened EX-Vault 1752 | -10/Exiles | Found Prototype Device 1752 | -10/Exiles | Identified Trap Reconfigurator 1802 | -10/Exiles | Warned to stay clear of 0b10 Research branches 1927 | -10/Exiles | Met EX-DEC 1944 | -10/Exiles | Learned location of Zion (-7) 2177 | -10/Exiles | Discovered new exit (range 11) 2193 | -10/Exiles | Left Exiles lab with Trap Reconfigurator 2193 | -10/Exiles | Entered Mines 2253 | -9/Mines | A weapon hastily lodged in a ceiling crevice suddenly fell to the ground 2304 | -9/Mines | Discovered new exit (range 14) 2333 | -9/Mines | Assisted by bots powering up and referring to "LRC-V3" 2345 | -9/Mines | Entered Materials 2345 | -8/Materials | Accompanied by 3 allies 2345 | -8/Materials | Evolved 4 slots: Propulsion x1, Utility x3 2594 | -8/Materials | Lost 3 allies 2619 | -8/Materials | Core integrity fell below 50% 2698 | -8/Materials | Lost 10 parts (3p3n1u3w) 3375 | -8/Materials | Core integrity fell below 20% 3408 | -8/Materials | Lost 11 parts (1p2n4u4w) 3418 | -8/Materials | Destroyed by H-61 Shepherd with Heavy Assault Cannon Last Messages --------------- 03369_ R-06 Scavenger collects Structural Scanner. 03370_ Slug penetrates Wall. 03371_ Arm. Treads severed. 03371_ L-31 Rogue destroyed. 03372_ R-06 Scavenger collects Wheel. 03372_ Imp. Ion Engine destroyed. 03374_ G-47 Trooper knocked back. 03374_ Gauss Cannon destroyed. 03375_ U-05 Engineer builds a Wall. 03377_ Hvy. EM Pulse Gun destroyed. 03377_ Knocked back. 03383_ U-05 Engineer builds a Wall. 03385_ G-47 Trooper destroyed. 03388_ Knocked back. 03410_ Hvy. Assault Rifle destroyed. 03412_ Gauss Cannon destroyed. 03416_ Trap Scanner destroyed. 03418_ Penetrated by Slug. 03418_ Grenade Launcher destroyed. Map ----- +----------------------------------------------------+ | ???????????????? #?????????????????????????? | | ?????????????????# #?????????????????????????? | | ?????????????????# #?????????????????????????? | | ?????????????????# +?????????????????????????? | | ?????????????????# #?????###?????????????????? | | ?????????????????# ##### ! ##????????????????? | | ?????????????????# ??????????? | | ?????????######### ##[ =#?????????????????? | | ??????? #?? ???????????????????? | | ???????????####### % #?? ???????????????????? | | ?????????????????##+##+####?? ???????????????????? | | ??????????????????# ^ %#????? ???????????????????? | | ??????????????????# #????# #??????????????????? | | ??????????????????# #????# ??????????????????? | | ??????????????????# %#????# #??????????????????? | | ??????????????????# %% #????# #??????????????????? | | ??????????????????# %% #????# #??????????????????? | | ??????????????????# %*#????# #??????????????????? | | ??????????????????#*% %#????#g#??????????????????? | | ??????????????????#!=%!#????# #????????^?????????? | | ??????????????????##/###????#%#???????^??????????? | | ??????????????????#%=%####### #??????????????????? | | ???????????????????#=%### #a####???????????????? | | ???????????????????# ; %%% #??^???? ?????? | | ???????????????????#% Hgg "" ! #????^ ?????? | | ???????????????????### @ * #?? ?????? | | ?????????????????????#### "*!!!## ?????? | | ????????????????????????# %= !!!## #????? | | ????????????????????????# "" ! ## #????? | | ????????????????????????# " ## #????? | | ????????????????????????# ## #????? | | ??????????????#####?????# = * ## "" #????? | | ??????????????# #######+###+##### """"" ##???? | | ??????????????# ! ## #% = """"" #?### | | ??????????????# ## % #|! """"" #?# ! | | ??????????????#!!!## +% #?# ! | | ??????????????#!!!## " " # #?# | | ?????????###### !!## "R" ## #?# | | ?????????#] ## ## """ ## #?# | | ?????????# ] ####+######+#### ""T"" ##### | | ?????????#!! """"" | | ?????????#! | | ?????????#!! | | ?????????#!! ####+######################### ###### | | ?????????##### !#?????????????????# #???? | | ?????????????# ! #?????????????????## #???? | | ?????????????# !! #??????????????????# ###???? | | ?????????????# !! #??????????????????#####?????? | | ?????????????# #????????????????????????????? | | ?????????????# #????????????????????????????? | +----------------------------------------------------+ Best States ------------- Heat Dissipation 63 Energy Generation 12 Energy Capacity 265 Matter Stores 300 Matter Capacity 300 Sight Range 16 Robot Scan Range 20 Terrain Scan Density 10 Additional Mass Support 9 Armor Coverage 225 Evasion (%) 40 Recoil Reduction 2 Offensive Hacking 10 Item Schematics ----------------- None Robot Schematics ------------------ None Fabricated ------------ Nothing Repaired ---------- Nothing Studied --------- None Alien Tech Used ----------------- None Achievements -------------- None Challenges ------------ None Game ------ Seed WarpEncryptedMembrane Manual? 0 Play Time 01:23:18 Cumulative 114.4 hours Start 2026.02.19 @ 02:45:32 End 2026.02.19 @ 19:20:22 Sessions 19 Manual Loads 0 Difficulty Rogue Special Mode None Game No. 60 Rogue 25 Adventurer 0 Explorer 35 Win Type - Total 1 Types 1/0/0/0/0/0/0/0/0/0 Lore% 31 Gallery% 34 Achievement% 28 Wizard Run 0 Options --------- Layout 0 ASCII 1 Keyboard 1 Movement Vi Keybinds 1 Fullscreen 0 Font 20/SmallcapsGlow Map View 50x62 Zoom Use 0% Tactical HUD 1 Map Filters NONE Filters NONE Steam 0 RUN: 3e08e134-36cf-4270-9e7f-ee911324c5f9